Workbook

Sheet 심의조서 총괄표
B1: 2021년도 제1회 예천군 보조금심의위원회 대상자선정 심의조서 총괄표
L2: (단위 : 천원)
B3: 부서명 | C3: 보 조 사 업 자 | D3: 보 조 사 업 명 | E3: 과목명 | F3: 사 업 내 용 | G3: 2020년 지원액 | H3: 계 | I3: 보조금 | J3: 자부담 | K3: 1차 (해당부서) | L3: 2차 (예산부서) | M3: 3차 (위원회)
B4: 합계 | D4: 8건 | G4: =SUM(G5,G8,G10,G14,G16) -> 390,478 | H4: =SUM(H5,H8,H10,H14,H16) -> 1,126,826 | I4: 816,102 | J4: 310,724 | K4: =I4 -> 816,102 | L4: =K4 -> 816,102 | M4: 816,102
B5: 주민복지실 소계 | D5: =SUBTOTAL(103,D6:D7)&"건" -> 2건 | G5: =SUM(G6:G7) -> 240,000 | H5: =SUM(H6:H7) -> 360,000 | I5: =SUM(I6:I7) -> 300,000 | J5: =SUM(J6:J7) -> 60,000 | K5: =I5 -> 300,000 | L5: 300,000 | M5: 300,000
B6: 주민복지실 | C6: 예천군 등록 경로당 366개소 | D6: 경로당 보수사업 | E6: 민간자본사업보조 | F6: 200,000,000원 * 1식 | G6: 240,000 | H6: =SUM(I6:J6) -> 260,000 | I6: 200,000 | J6: 60,000 | K6: =I6 -> 200,000 | L6: 200,000 | M6: 200,000
B7: 주민복지실 | C7: 예천군 등록 경로당 366개소 | D7: 경로당 활성화 물품 구입 | E7: 민간자본사업보조 | F7: 100,000,000원 * 1식 | G7: 0 | H7: =SUM(I7:J7) -> 100,000 | I7: 100,000 | J7: 0 | K7: =I7 -> 100,000 | L7: 100,000 | M7: 100,000
B8: 문화관광과 소계 | D8: =SUBTOTAL(103,D13:D13)&"건" -> 1건 | G8: =SUM(G13) -> 0 | H8: =SUM(H9) -> 200,000 | I8: =SUM(I9) -> 200,000 | J8: =SUM(J9) -> 0 | K8: =I8 -> 200,000 | L8: 200,000 | M8: 200,000
B9: 문화관광과 | C9: 예천국제스마트폰영화제조직위 | D9: 제3회 예천국제스마트폰영화제 | E9: 민간경상사업보조 | F9: 홍보마케팅, 프로그램운영, 시상식 개최, 상영회, 행사장 설치 등 | G9: 0 | H9: =SUM(I9:J9) -> 200,000 | I9: 200,000 | J9: 0 | K9: =I9 -> 200,000 | L9: 200,000 | M9: 200,000
B10: 환경관리과 소계 | D10: =SUBTOTAL(103,D11:D13)&"건" -> 3건 | G10: =SUM(G15) -> 0 | H10: =SUM(H11:H13) -> 267,318 | I10: =SUM(I11:I13) -> 148,848 | J10: 118,470 | K10: 148,848 | L10: =I10 -> 148,848 | M10: 148,848
B11: 환경관리과 | C11: 남은영 외 3명 | D11: 어린이통학차량 LPG차 전환 지원사업 | E11: 민간자본사업보조 | F11: 어린이통학차량 지원 : 7,000천원 * 4대 | G11: 0 | H11: 28,000 | I11: 28,000 | J11: 0 | K11: 28,000 | L11: =I11 -> 28,000 | M11: 28,000
B12: 환경관리과 | C12: 예천읍 이** 외 249명 | D12: 야생동물 피해예방시설 설치 지원사업 | E12: 민간자본사업보조 | F12: 114000000x1식x60% | G12: 0 | H12: =SUM(I12:J12) -> 207,563 | I12: 113,648 | J12: 93,915 | K12: =I12 -> 113,648 | L12: =I12 -> 113,648 | M12: 113,648
B13: 환경관리과 | C13: 예천읍 안** 외 35명 | D13: 가정용 저녹스보일러 설치 지원 사업 | E13: 민간자본사업보조 | F13: 일반 가구 : 200천원 * 36가구 | G13: 0 | H13: 31,755 | I13: 7,200 | J13: =H13-I13 -> 24,555 | K13: 7,200 | L13: =I13 -> 7,200 | M13: 7,200
B14: 농정과 소계 | D14: 1건 | G14: =SUM(G15) -> 0 | H14: =SUM(H15:H15) -> 35,000 | I14: =SUM(I15:I15) -> 35,000 | J14: =SUM(J15:J15) -> 0 | K14: =I14 -> 35,000 | L14: =K14 -> 35,000 | M14: 35,000
B15: 농정과 | C15: 지보면 대죽길 *** 김** 외 6명 | D15: 후계농업인 육성(농업계고 졸업생 창업비용지원) | E15: 민간자본사업보조 | F15: 35,000천원*1식*100% | H15: =SUM(I15:J15) -> 35,000 | I15: 35,000 | K15: =I15 -> 35,000 | L15: =K15 -> 35,000 | M15: 35,000
B16: 산림녹지과 소계 | D16: 1건 | G16: =SUM(G17) -> 150,478 | H16: =SUM(H17:H17) -> 264,508 | I16: =SUM(I17:I17) -> 132,254 | J16: =SUM(J17:J17) -> 132,254 | K16: =I16 -> 132,254 | L16: =K16 -> 132,254 | M16: 132,254
B17: 산림녹지과 | C17: 호명면 검무로 ** 황** 외 23명 | D17: 단기임산물소득지원 | E17: 민간자본사업보조 | F17: 표고자목 및 배지구입 지원 : 229,818 임산물 묘목 구입지원 : 34,690 | G17: 150,478 | H17: =SUM(I17:J17) -> 264,508 | I17: 132,254 | J17: 132,254 | K17: =I17 -> 132,254 | L17: =K17 -> 132,254 | M17: 132,254

Sheet 대상자별지내역
B1: 2021년도 제1회 예천군 보조금심의위원회 대상자내역 별지 조서
M2: (단위 : 천원)
B3: 부서명 | C3: 보 조 사 업 자 | E3: 보 조 사 업 명 | F3: 과목명 | G3: 사 업 내 용 | H3: 2020년 지원액 | I3: 계 | J3: 보조금 | K3: 자부담 | L3: 1차 (해당부서) | M3: 2차 (예산부서) | N3: 3차 (위원회)
C4: 주소 | D4: 성명
B5: 합계 | D5: 689명 | H5: =SUM(H6,H9,H11,H302,H310) -> 390,478 | I5: =SUM(I6,I9,I11,I302,I310) -> 1,126,826 | J5: 816,102 | K5: 310,724 | L5: =J5 -> 816,102 | M5: =J5 -> 816,102 | N5: 816,102
B6: 주민복지실 소계 | D6: 366명 | H6: =SUM(H7:H8) -> 240,000 | I6: =SUM(I7:I8) -> 360,000 | J6: =SUM(J7:J8) -> 300,000 | K6: =SUM(K7:K8) -> 60,000 | L6: =J6 -> 300,000 | M6: =L6 -> 300,000 | N6: 300,000
B7: 주민복지실 | C7: 예천군 관내 | D7: 366개소 노인회장 | E7: 경로당 보수 | F7: 민간자본사업보조 | G7: 200,000,000원 * 1식 | H7: 240,000 | I7: =SUM(J7:K7) -> 260,000 | J7: 200,000 | K7: 60,000 | L7: =J7 -> 200,000 | M7: 200,000 | N7: 200,000
B8: 주민복지실 | C8: 예천군 관내 | D8: 366개소 노인회장 | E8: 경로당 활성화 물품 구입 | F8: 민간자본사업보조 | G8: 100,000,000원 * 1식 | H8: 0 | I8: =SUM(J8:K8) -> 100,000 | J8: 100,000 | K8: 0 | L8: 100,000 | M8: 100,000 | N8: 100,000
B9: 문화관광과 소계 | D9: 1명 | H9: =SUM(H10) -> 0 | I9: =SUM(I10) -> 200,000 | J9: =SUM(J10) -> 200,000 | K9: 0 | L9: =J9 -> 200,000 | M9: =J9 -> 200,000 | N9: 200,000
B10: 문화관광과 | C10: 예천군 풍양면 삼강리길 ** | D10: 예천국제스마트폰 영화제조직위원 회(대표 정**) | E10: 제3회 예천국제스마트폰영화제 | F10: 민간경상사업보조 | G10: 홍보마케팅, 프로그램운영, 시상식 개최, 상영회, 행사장 설치 등 | H10: 0 | I10: 200,000 | J10: 200,000 | K10: 0 | L10: =J10 -> 200,000 | M10: =J10 -> 200,000 | N10: 200,000
B11: 환경관리과 소계 | D11: 290명 | H11: =SUM(H12:H301) -> 0 | I11: =SUM(I12:I301) -> 267,318 | J11: =SUM(J12:J301) -> 148,848 | K11: 118,470 | L11: =J11 -> 148,848 | M11: =J11 -> 148,848 | N11: 148,848
B12: 환경관리과 | C12: 예천읍 봉덕로 ** 스카이뷰 ***동 ***호 | D12: 남** | E12: 어린이통학차량 LPG차 전환 지원사업 | F12: 민간자본사업보조 | G12: 7,000천원*1대 | I12: 7,000 | J12: 7,000 | L12: 7,000 | M12: =J12 -> 7,000 | N12: 7,000
B13: 환경관리과 | C13: 예천군 호명면 행복로*** 동일스위트 ***동 ***호 | D13: 안** | E13: 어린이통학차량 LPG차 전환 지원사업 | F13: 민간자본사업보조 | G13: 7,000천원*1대 | I13: 7,000 | J13: 7,000 | L13: 7,000 | M13: =J13 -> 7,000 | N13: 7,000
B14: 환경관리과 | C14: 예천군 호명면 행복로*** 동일스위트 ***동 ***호 | D14: 김** | E14: 어린이통학차량 LPG차 전환 지원사업 | F14: 민간자본사업보조 | G14: 7,000천원*1대 | I14: 7,000 | J14: 7,000 | L14: 7,000 | M14: 7,000 | N14: 7,000
B15: 환경관리과 | C15: 예천군 호명면 행복로*** 동일스위트 ***동 ****호 | D15: 유** | E15: 어린이통학차량 LPG차 전환 지원사업 | F15: 민간자본사업보조 | G15: 7,000천원*1대 | I15: 7,000 | J15: 7,000 | L15: 7,000 | M15: 7,000 | N15: 7,000
B16: 환경관리과 | C16: 예천군 예천읍 중앙로 ** 유경팰리스 ****호 | D16: 안** | E16: 가정용 저녹스보일러 설치지원사업 | F16: 민간자본사업보조 | G16: 200천원*1가구 | H16: 0 | I16: 950 | J16: 200 | K16: =I16-J16 -> 750 | L16: 200 | M16: 200 | N16: 200
B17: 환경관리과 | C17: 예천군 예천읍 중앙로 ** 유경팰리스 ****호 | D17: 박** | E17: 가정용 저녹스보일러 설치지원사업 | F17: 민간자본사업보조 | G17: 200천원*1가구 | H17: 0 | I17: 950 | J17: 200 | K17: =I17-J17 -> 750 | L17: 200 | M17: 200 | N17: 200
B18: 환경관리과 | C18: 예천군 예천읍 동읍내길 **** 이원동본아파트 ***호 | D18: 김** | E18: 가정용 저녹스보일러 설치지원사업 | F18: 민간자본사업보조 | G18: 200천원*1가구 | H18: 0 | I18: 950 | J18: 200 | K18: 750 | L18: 200 | M18: 200 | N18: 200
B19: 환경관리과 | C19: 예천군 예천읍 용문경천로 ****, 영남타운 *층 ***호 | D19: 배** | E19: 가정용 저녹스보일러 설치지원사업 | F19: 민간자본사업보조 | G19: 200천원*1가구 | H19: 0 | I19: 950 | J19: 200 | K19: 750 | L19: 200 | M19: 200 | N19: 200
B20: 환경관리과 | C20: 예천군 예천읍 중앙로 ** 유경팰리스 ****호 | D20: 권** | E20: 가정용 저녹스보일러 설치지원사업 | F20: 민간자본사업보조 | G20: 200천원*1가구 | H20: 0 | I20: 950 | J20: 200 | K20: 750 | L20: 200 | M20: 200 | N20: 200
B21: 환경관리과 | C21: 예천군 예천읍 충효로 **** 이원퍼스트 ***호 | D21: 백** | E21: 가정용 저녹스보일러 설치지원사업 | F21: 민간자본사업보조 | G21: 200천원*1가구 | H21: 0 | I21: 950 | J21: 200 | K21: 750 | L21: 200 | M21: 200 | N21: 200
B22: 환경관리과 | C22: 예천군 예천읍 용문경천로 **** 성현아너스리버, 나동 ***호 | D22: 박** | E22: 가정용 저녹스보일러 설치지원사업 | F22: 민간자본사업보조 | G22: 200천원*1가구 | H22: 0 | I22: 1,090 | J22: 200 | K22: 890 | L22: 200 | M22: 200 | N22: 200
B23: 환경관리과 | C23: 예천군 예천읍 흑응로 ** 두영무지개빌라 ***호 | D23: 황** | E23: 가정용 저녹스보일러 설치지원사업 | F23: 민간자본사업보조 | G23: 200천원*1가구 | H23: 0 | I23: 880 | J23: 200 | K23: 680 | L23: 200 | M23: 200 | N23: 200
B24: 환경관리과 | C24: 예천군 예천읍 동읍내길 **, 쌍용*차 ***호 | D24: 권** | E24: 가정용 저녹스보일러 설치지원사업 | F24: 민간자본사업보조 | G24: 200천원*1가구 | H24: 0 | I24: 750 | J24: 200 | K24: 550 | L24: 200 | M24: 200 | N24: 200
B25: 환경관리과 | C25: 예천군 예천읍 동읍내길 **, 쌍용*차 ***호 | D25: 정** | E25: 가정용 저녹스보일러 설치지원사업 | F25: 민간자본사업보조 | G25: 200천원*1가구 | H25: 0 | I25: 750 | J25: 200 | K25: 550 | L25: 200 | M25: 200 | N25: 200
B26: 환경관리과 | C26: 예천군 예천읍 동읍내길 **, 쌍용*차 ***호 | D26: 김** | E26: 가정용 저녹스보일러 설치지원사업 | F26: 민간자본사업보조 | G26: 200천원*1가구 | H26: 0 | I26: 750 | J26: 200 | K26: 550 | L26: 200 | M26: 200 | N26: 200
B27: 환경관리과 | C27: 예천군 예천읍 동읍내길 **, 쌍용*차 ***호 | D27: 이** | E27: 가정용 저녹스보일러 설치지원사업 | F27: 민간자본사업보조 | G27: 200천원*1가구 | H27: 0 | I27: 750 | J27: 200 | K27: 550 | L27: 200 | M27: 200 | N27: 200
B28: 환경관리과 | C28: 예천군 예천읍 동읍내길 **, 쌍용*차 ***호 | D28: 김** | E28: 가정용 저녹스보일러 설치지원사업 | F28: 민간자본사업보조 | G28: 200천원*1가구 | H28: 0 | I28: 750 | J28: 200 | K28: 550 | L28: 200 | M28: 200 | N28: 200
B29: 환경관리과 | C29: 예천군 예천읍 동읍내길 **, 쌍용*차 ***호 | D29: 이** | E29: 가정용 저녹스보일러 설치지원사업 | F29: 민간자본사업보조 | G29: 200천원*1가구 | H29: 0 | I29: 750 | J29: 200 | K29: 550 | L29: 200 | M29: 200 | N29: 200
B30: 환경관리과 | C30: 예천군 예천읍 동읍내길 **, 쌍용*차 ***호 | D30: 심** | E30: 가정용 저녹스보일러 설치지원사업 | F30: 민간자본사업보조 | G30: 200천원*1가구 | H30: 0 | I30: 750 | J30: 200 | K30: 550 | L30: 200 | M30: 200 | N30: 200
B31: 환경관리과 | C31: 예천군 예천읍 동읍내길 **, 쌍용*차 ***호 | D31: 황** | E31: 가정용 저녹스보일러 설치지원사업 | F31: 민간자본사업보조 | G31: 200천원*1가구 | H31: 0 | I31: 750 | J31: 200 | K31: 550 | L31: 200 | M31: 200 | N31: 200
B32: 환경관리과 | C32: 예천군 예천읍 동읍내길 **, 쌍용*차 ***호 | D32: 김** | E32: 가정용 저녹스보일러 설치지원사업 | F32: 민간자본사업보조 | G32: 200천원*1가구 | H32: 0 | I32: 750 | J32: 200 | K32: 550 | L32: 200 | M32: 200 | N32: 200
B33: 환경관리과 | C33: 예천군 예천읍 동읍내길 **, 쌍용*차 ***호 | D33: 김** | E33: 가정용 저녹스보일러 설치지원사업 | F33: 민간자본사업보조 | G33: 200천원*1가구 | H33: 0 | I33: 750 | J33: 200 | K33: 550 | L33: 200 | M33: 200 | N33: 200
B34: 환경관리과 | C34: 예천군 예천읍 동읍내길 **, 쌍용*차 ***호 | D34: 남** | E34: 가정용 저녹스보일러 설치지원사업 | F34: 민간자본사업보조 | G34: 200천원*1가구 | H34: 0 | I34: 750 | J34: 200 | K34: 550 | L34: 200 | M34: 200 | N34: 200
B35: 환경관리과 | C35: 예천군 예천읍 동읍내길 **, 쌍용*차 ***호 | D35: 김** | E35: 가정용 저녹스보일러 설치지원사업 | F35: 민간자본사업보조 | G35: 200천원*1가구 | H35: 0 | I35: 750 | J35: 200 | K35: 550 | L35: 200 | M35: 200 | N35: 200
B36: 환경관리과 | C36: 예천군 예천읍 동읍내길 **, 영남아파트 나동 ***호 | D36: 김** | E36: 가정용 저녹스보일러 설치지원사업 | F36: 민간자본사업보조 | G36: 200천원*1가구 | H36: 0 | I36: 880 | J36: 200 | K36: 680 | L36: 200 | M36: 200 | N36: 200
B37: 환경관리과 | C37: 예천군 예천읍 동읍내길 **, 영남아파트 나동 ***호 | D37: 강** | E37: 가정용 저녹스보일러 설치지원사업 | F37: 민간자본사업보조 | G37: 200천원*1가구 | H37: 0 | I37: 880 | J37: 200 | K37: 680 | L37: 200 | M37: 200 | N37: 200
B38: 환경관리과 | C38: 예천군 예천읍 대심*길 ***** | D38: 정** | E38: 가정용 저녹스보일러 설치지원사업 | F38: 민간자본사업보조 | G38: 200천원*1가구 | H38: 0 | I38: 1,200 | J38: 200 | K38: 1,000 | L38: 200 | M38: 200 | N38: 200
B39: 환경관리과 | C39: 예천군 예천읍 충효로 *****, 천지원 ***동 ***호 | D39: 최** | E39: 가정용 저녹스보일러 설치지원사업 | F39: 민간자본사업보조 | G39: 200천원*1가구 | H39: 0 | I39: 700 | J39: 200 | K39: 500 | L39: 200 | M39: 200 | N39: 200
B40: 환경관리과 | C40: 예천군 예천읍 중앙로 **, 유경팰리스 ****호 | D40: 김** | E40: 가정용 저녹스보일러 설치지원사업 | F40: 민간자본사업보조 | G40: 200천원*1가구 | H40: 0 | I40: 990 | J40: 200 | K40: 790 | L40: 200 | M40: 200 | N40: 200
B41: 환경관리과 | C41: 예천군 호명면 검무로 **, 우방*차 ***동 ****호 | D41: 조** | E41: 가정용 저녹스보일러 설치지원사업 | F41: 민간자본사업보조 | G41: 200천원*1가구 | H41: 0 | I41: 880 | J41: 200 | K41: 680 | L41: 200 | M41: 200 | N41: 200
B42: 환경관리과 | C42: 예천군 예천읍 대심*길 **, 로얄 A차 ***호 | D42: 김** | E42: 가정용 저녹스보일러 설치지원사업 | F42: 민간자본사업보조 | G42: 200천원*1가구 | H42: 0 | I42: 935 | J42: 200 | K42: 735 | L42: 200 | M42: 200 | N42: 200
B43: 환경관리과 | C43: 예천군 예천읍 양궁로 **, 세아아파트 ***동 ***호 | D43: 한** | E43: 가정용 저녹스보일러 설치지원사업 | F43: 민간자본사업보조 | G43: 200천원*1가구 | H43: 0 | I43: 900 | J43: 200 | K43: 700 | L43: 200 | M43: 200 | N43: 200
B44: 환경관리과 | C44: 예천군 예천읍 상설시장 *길 **** | D44: 윤** | E44: 가정용 저녹스보일러 설치지원사업 | F44: 민간자본사업보조 | G44: 200천원*1가구 | H44: 0 | I44: 1,300 | J44: 200 | K44: 1,100 | L44: 200 | M44: 200 | N44: 200
B45: 환경관리과 | C45: 예천군 예천읍 군청길 **** | D45: 진** | E45: 가정용 저녹스보일러 설치지원사업 | F45: 민간자본사업보조 | G45: 200천원*1가구 | H45: 0 | I45: 950 | J45: 200 | K45: 750 | L45: 200 | M45: 200 | N45: 200
B46: 환경관리과 | C46: 예천군 예천읍 중앙로 **, 유경팰리스 ****호 | D46: 정** | E46: 가정용 저녹스보일러 설치지원사업 | F46: 민간자본사업보조 | G46: 200천원*1가구 | H46: 0 | I46: 950 | J46: 200 | K46: 750 | L46: 200 | M46: 200 | N46: 200
B47: 환경관리과 | C47: 예천군 예천읍 대심*길 **, 장미아파트 ***동 ***호 | D47: 박** | E47: 가정용 저녹스보일러 설치지원사업 | F47: 민간자본사업보조 | G47: 200천원*1가구 | H47: 0 | I47: 950 | J47: 200 | K47: 750 | L47: 200 | M47: 200 | N47: 200
B48: 환경관리과 | C48: 예천군 예천읍 대심*길 ***** | D48: 윤** | E48: 가정용 저녹스보일러 설치지원사업 | F48: 민간자본사업보조 | G48: 200천원*1가구 | H48: 0 | I48: 750 | J48: 200 | K48: 550 | L48: 200 | M48: 200 | N48: 200
B49: 환경관리과 | C49: 예천군 예천읍 남본리 ***, 천지원아파트 ***동 ***호 | D49: 황** | E49: 가정용 저녹스보일러 설치지원사업 | F49: 민간자본사업보조 | G49: 200천원*1가구 | H49: 0 | I49: 950 | J49: 200 | K49: 750 | L49: 200 | M49: 200 | N49: 200
B50: 환경관리과 | C50: 예천군 예천읍 대심*길 ***** 동부*차 ***호 | D50: 황** | E50: 가정용 저녹스보일러 설치지원사업 | F50: 민간자본사업보조 | G50: 200천원*1가구 | H50: 0 | I50: 920 | J50: 200 | K50: 720 | L50: 200 | M50: 200 | N50: 200
B51: 환경관리과 | C51: 예천군 예천읍 중앙로 ** 유경팰리스 ****호 | D51: 안** | E51: 가정용 저녹스보일러 설치지원사업 | F51: 민간자본사업보조 | G51: 200천원*1가구 | H51: 0 | I51: 950 | J51: 200 | K51: 750 | L51: 200 | M51: 200 | N51: 200
B52: 환경관리과 | C52: 감천면 밤나무골길 ** | D52: 신** | E52: 야생동물 피해예방시설 설치 지원 | F52: 민간자본사업보조 | G52: 3675천원*1식*60% | H52: 0 | I52: =SUM(J52:K52) -> 3,675 | J52: 2,205 | K52: 1,470 | L52: =J52 -> 2,205 | M52: 2,205 | N52: 2,205
B53: 환경관리과 | C53: 영주시 휴천동 번영로 ** | D53: 김** | E53: 야생동물 피해예방시설 설치 지원 | F53: 민간자본사업보조 | G53: 2760천원*1식*60% | H53: 0 | I53: 2,760 | J53: 1,656 | K53: 1,104 | L53: 1,656 | M53: 1,656 | N53: 1,656
B54: 환경관리과 | C54: 감천면 대산길 *** | D54: 손** | E54: 야생동물 피해예방시설 설치 지원 | F54: 민간자본사업보조 | G54: 2190천원*1식*60% | H54: 0 | I54: 2,190 | J54: 1,314 | K54: 876 | L54: 1,314 | M54: 1,314 | N54: 1,314
B55: 환경관리과 | C55: 은풍면 한천길 ** | D55: 황** | E55: 야생동물 피해예방시설 설치 지원 | F55: 민간자본사업보조 | G55: 3450천원*1식*60% | H55: 0 | I55: 3,450 | J55: 2,070 | K55: 1,380 | L55: 2,070 | M55: 2,070 | N55: 2,070
B56: 환경관리과 | C56: 은풍면 어림성길 ** | D56: 서** | E56: 야생동물 피해예방시설 설치 지원 | F56: 민간자본사업보조 | G56: 1125천원*1식*60% | H56: 0 | I56: 1,125 | J56: 675 | K56: 450 | L56: 675 | M56: 675 | N56: 675
B57: 환경관리과 | C57: 은풍면 어림성길 ****** | D57: 김** | E57: 야생동물 피해예방시설 설치 지원 | F57: 민간자본사업보조 | G57: 3750천원*1식*60% | H57: 0 | I57: 3,750 | J57: 2,250 | K57: 1,500 | L57: 2,250 | M57: 2,250 | N57: 2,250
B58: 환경관리과 | C58: 은풍면 은풍준시길 ***** | D58: 황** | E58: 야생동물 피해예방시설 설치 지원 | F58: 민간자본사업보조 | G58: 600천원*1식*60% | H58: 0 | I58: 600 | J58: 360 | K58: 240 | L58: 360 | M58: 360 | N58: 360
B59: 환경관리과 | C59: 은풍면 어림성길 ****** | D59: 김** | E59: 야생동물 피해예방시설 설치 지원 | F59: 민간자본사업보조 | G59: 825천원*1식*60% | H59: 0 | I59: 825 | J59: 495 | K59: 330 | L59: 495 | M59: 495 | N59: 495
B60: 환경관리과 | C60: 보문면 가거리길 ** | D60: 강** | E60: 야생동물 피해예방시설 설치 지원 | F60: 민간자본사업보조 | G60: 1200천원*1식*60% | H60: 0 | I60: 1,200 | J60: 720 | K60: 480 | L60: 720 | M60: 720 | N60: 720
B61: 환경관리과 | C61: 보문면 가거리길 ** | D61: 김** | E61: 야생동물 피해예방시설 설치 지원 | F61: 민간자본사업보조 | G61: 1200천원*1식*60% | H61: 0 | I61: 1,200 | J61: 720 | K61: 480 | L61: 720 | M61: 720 | N61: 720
B62: 환경관리과 | C62: 보문면 휴양림길 ** | D62: 정** | E62: 야생동물 피해예방시설 설치 지원 | F62: 민간자본사업보조 | G62: 225천원*1식*60% | H62: 0 | I62: 225 | J62: 135 | K62: 90 | L62: 135 | M62: 135 | N62: 135
B63: 환경관리과 | C63: 보문면 가거리길 ***** | D63: 정** | E63: 야생동물 피해예방시설 설치 지원 | F63: 민간자본사업보조 | G63: 600천원*1식*60% | H63: 0 | I63: 600 | J63: 360 | K63: 240 | L63: 360 | M63: 360 | N63: 360
B64: 환경관리과 | C64: 보문면 가거리길 ** | D64: 정** | E64: 야생동물 피해예방시설 설치 지원 | F64: 민간자본사업보조 | G64: 1500천원*1식*60% | H64: 0 | I64: 1,500 | J64: 900 | K64: 600 | L64: 900 | M64: 900 | N64: 900
B65: 환경관리과 | C65: 보문면 가거리길 ** | D65: 강** | E65: 야생동물 피해예방시설 설치 지원 | F65: 민간자본사업보조 | G65: 1650천원*1식*60% | H65: 0 | I65: 1,650 | J65: 990 | K65: 660 | L65: 990 | M65: 990 | N65: 990
B66: 환경관리과 | C66: 지보면 만화*길 ***** | D66: 전** | E66: 야생동물 피해예방시설 설치 지원 | F66: 민간자본사업보조 | G66: 1977천원*1식*60% | H66: 0 | I66: 1,973 | J66: 1,184 | K66: 789 | L66: 1,184 | M66: 1,184 | N66: 1,184
B67: 환경관리과 | C67: 지보면 만화*길 *** | D67: 이** | E67: 야생동물 피해예방시설 설치 지원 | F67: 민간자본사업보조 | G67: 3915천원*1식*60% | H67: 0 | I67: 3,915 | J67: 2,349 | K67: 1,566 | L67: 2,349 | M67: 2,349 | N67: 2,349
B68: 환경관리과 | C68: 효자면 도효자로 ******* | D68: 이** | E68: 야생동물 피해예방시설 설치 지원 | F68: 민간자본사업보조 | G68: 3600천원*1식*60% | H68: 0 | I68: 3,600 | J68: 2,160 | K68: 1,440 | L68: 2,160 | M68: 2,160 | N68: 2,160
B69: 환경관리과 | C69: 지보면 소화*길 *** | D69: 이** | E69: 야생동물 피해예방시설 설치 지원 | F69: 민간자본사업보조 | G69: 3120천원*1식*60% | H69: 0 | I69: 3,120 | J69: 1,872 | K69: 1,248 | L69: 1,872 | M69: 1,872 | N69: 1,872
B70: 환경관리과 | C70: 지보면 소화리 *길 *** | D70: 이** | E70: 야생동물 피해예방시설 설치 지원 | F70: 민간자본사업보조 | G70: 2160천원*1식*60% | H70: 0 | I70: 2,160 | J70: 1,296 | K70: 864 | L70: 1,296 | M70: 1,296 | N70: 1,296
B71: 환경관리과 | C71: 유천면 버드네길 *** | D71: 황** | E71: 야생동물 피해예방시설 설치 지원 | F71: 민간자본사업보조 | G71: 1802천원*1식*60% | H71: 0 | I71: 1,803 | J71: 1,082 | K71: 721 | L71: 1,082 | M71: 1,082 | N71: 1,082
B72: 환경관리과 | C72: 지보면 매화길 ** | D72: 정** | E72: 야생동물 피해예방시설 설치 지원 | F72: 민간자본사업보조 | G72: 3090천원*1식*60% | H72: 0 | I72: 3,090 | J72: 1,854 | K72: 1,236 | L72: 1,854 | M72: 1,854 | N72: 1,854
B73: 환경관리과 | C73: 예천읍 흑응로 **** | D73: 김** | E73: 야생동물 피해예방시설 설치 지원 | F73: 민간자본사업보조 | G73: 3000천원*1식*60% | H73: 0 | I73: 3,000 | J73: 1,800 | K73: 1,200 | L73: 1,800 | M73: 1,800 | N73: 1,800
B74: 환경관리과 | C74: 호명면 직산리 *** | D74: 정** | E74: 야생동물 피해예방시설 설치 지원 | F74: 민간자본사업보조 | G74: 2250천원*1식*60% | H74: 0 | I74: 2,250 | J74: 1,350 | K74: 900 | L74: 1,350 | M74: 1,350 | N74: 1,350
B75: 환경관리과 | C75: 경북 김천시 충효길 ** 항도아파트 *동 ***호 | D75: 전** | E75: 야생동물 피해예방시설 설치 지원 | F75: 민간자본사업보조 | G75: 3840천원*1식*60% | H75: 0 | I75: 3,840 | J75: 2,304 | K75: 1,536 | L75: 2,304 | M75: 2,304 | N75: 2,304
B76: 환경관리과 | C76: 은풍면 도효자로 ******* | D76: 김** | E76: 야생동물 피해예방시설 설치 지원 | F76: 민간자본사업보조 | G76: 3150천원*1식*60% | H76: 0 | I76: 3,150 | J76: 1,890 | K76: 1,260 | L76: 1,890 | M76: 1,890 | N76: 1,890
B77: 환경관리과 | C77: 은풍면 도효자로 ******* | D77: 장** | E77: 야생동물 피해예방시설 설치 지원 | F77: 민간자본사업보조 | G77: 3450천원*1식*60% | H77: 0 | I77: 3,450 | J77: 2,070 | K77: 1,380 | L77: 2,070 | M77: =J77 -> 2,070 | N77: 2,070
B78: 환경관리과 | C78: 감천면 덕율*길 ** | D78: 엄** | E78: 야생동물 피해예방시설 설치 지원 | F78: 민간자본사업보조 | G78: 1500천원*1식*60% | H78: 0 | I78: 1,500 | J78: 900 | K78: 600 | L78: 900 | M78: 900 | N78: 900
B79: 환경관리과 | C79: 지보면 만화*길 *** | D79: 윤** | E79: 야생동물 피해예방시설 설치 지원 | F79: 민간자본사업보조 | G79: 1890천원*1식*60% | H79: 0 | I79: 1,890 | J79: 1,134 | K79: 756 | L79: 1,134 | M79: 1,134 | N79: 1,134
B80: 환경관리과 | C80: 용궁면 무이서당길 *** | D80: 이** | E80: 야생동물 피해예방시설 설치 지원 | F80: 민간자본사업보조 | G80: 7500천원*1식*60% | H80: 0 | I80: 7,500 | J80: 3,000 | K80: 4,500 | L80: 3,000 | M80: 3,000 | N80: 3,000
B81: 환경관리과 | C81: 용궁면 가야리 *** | D81: 전** | E81: 야생동물 피해예방시설 설치 지원 | F81: 민간자본사업보조 | G81: 7700천원*1식*60% | H81: 0 | I81: 7,700 | J81: 3,000 | K81: 4,700 | L81: 3,000 | M81: 3,000 | N81: 3,000
B82: 환경관리과 | C82: 효자면 은풍로 ****** | D82: 이** | E82: 야생동물 피해예방시설 설치 지원 | F82: 민간자본사업보조 | G82: 3300천원*1식*60% | H82: 0 | I82: 3,300 | J82: 1,980 | K82: 1,320 | L82: 1,980 | M82: 1,980 | N82: 1,980
B83: 환경관리과 | C83: 개포면 죽전길***** | D83: 장** | E83: 야생동물 피해예방시설 설치 지원 | F83: 민간자본사업보조 | G83: 7275천원*1식*60% | H83: 0 | I83: 7,275 | J83: 3,000 | K83: 4,275 | L83: 3,000 | M83: 3,000 | N83: 3,000
B84: 환경관리과 | C84: 용문면 용문사길 *** | D84: 권** | E84: 야생동물 피해예방시설 설치 지원 | F84: 민간자본사업보조 | G84: 3900천원*1식*60% | H84: 0 | I84: 3,900 | J84: 2,340 | K84: 1,560 | L84: 2,340 | M84: 2,340 | N84: 2,340
B85: 환경관리과 | C85: 개포면 장송길***** | D85: 박** | E85: 야생동물 피해예방시설 설치 지원 | F85: 민간자본사업보조 | G85: 2411천원*1식*60% | H85: 0 | I85: 2,411 | J85: 1,447 | K85: 964 | L85: 1,447 | M85: 1,447 | N85: 1,447
B86: 환경관리과 | C86: 호명면 담암길 ** | D86: 장** | E86: 야생동물 피해예방시설 설치 지원 | F86: 민간자본사업보조 | G86: 3675천원*1식*60% | H86: 0 | I86: 3,675 | J86: 2,205 | K86: 1,470 | L86: 2,205 | M86: 2,205 | N86: 2,205
B87: 환경관리과 | C87: 호명면 백송길 **** | D87: 이** | E87: 야생동물 피해예방시설 설치 지원 | F87: 민간자본사업보조 | G87: 4050천원*1식*60% | H87: 0 | I87: 4,050 | J87: 2,430 | K87: 1,620 | L87: 2,430 | M87: 2,430 | N87: 2,430
B88: 환경관리과 | C88: 용문면 금당실길 *** | D88: 한** | E88: 야생동물 피해예방시설 설치 지원 | F88: 민간자본사업보조 | G88: 6150천원*1식*60% | H88: 0 | I88: 6,150 | J88: 3,000 | K88: 3,150 | L88: 3,000 | M88: 3,000 | N88: 3,000
B89: 환경관리과 | C89: 예천읍 시장로 *** | D89: 박** | E89: 야생동물 피해예방시설 설치 지원 | F89: 민간자본사업보조 | G89: 7305천원*1식*60% | H89: 0 | I89: 7,305 | J89: 3,000 | K89: 4,305 | L89: 3,000 | M89: 3,000 | N89: 3,000
B90: 환경관리과 | C90: 개포면 왕의산로****** | D90: 이** | E90: 야생동물 피해예방시설 설치 지원 | F90: 민간자본사업보조 | G90: 3900천원*1식*60% | H90: 0 | I90: 3,900 | J90: 2,340 | K90: 1,560 | L90: 2,340 | M90: 2,340 | N90: 2,340
B91: 환경관리과 | C91: 효자면 새별길 ** | D91: 김** | E91: 야생동물 피해예방시설 설치 지원 | F91: 민간자본사업보조 | G91: 4500천원*1식*60% | H91: 0 | I91: 4,500 | J91: 2,700 | K91: 1,800 | L91: 2,700 | M91: 2,700 | N91: 2,700
B92: 환경관리과 | C92: 유천면 고산길 ***** | D92: 신** | E92: 야생동물 피해예방시설 설치 지원 | F92: 민간자본사업보조 | G92: 4005천원*1식*60% | H92: 0 | I92: 4,005 | J92: 2,403 | K92: 1,602 | L92: 2,403 | M92: 2,403 | N92: 2,403
B93: 환경관리과 | C93: 개포면 용개로****** | D93: 강** | E93: 야생동물 피해예방시설 설치 지원 | F93: 민간자본사업보조 | G93: 2790천원*1식*60% | H93: 0 | I93: 2,790 | J93: 1,674 | K93: 1,116 | L93: 1,674 | M93: 1,674 | N93: 1,674
B94: 환경관리과 | C94: 예천읍 용산길 **** | D94: 박** | E94: 야생동물 피해예방시설 설치 지원 | F94: 민간자본사업보조 | G94: 1651천원*1식*60% | H94: 0 | I94: 1,651 | J94: 991 | K94: 660 | L94: 991 | M94: 991 | N94: 991
B95: 환경관리과 | C95: 문경시 호계면 구화리 ** | D95: 신** | E95: 야생동물 피해예방시설 설치 지원 | F95: 민간자본사업보조 | G95: 1552천원*1식*60% | H95: 0 | I95: 1,552 | J95: 931 | K95: 621 | L95: 931 | M95: 931 | N95: 931
B96: 환경관리과 | C96: 용궁면 장성계길 ** | D96: 전** | E96: 야생동물 피해예방시설 설치 지원 | F96: 민간자본사업보조 | G96: 3000천원*1식*60% | H96: 0 | I96: 3,000 | J96: 1,800 | K96: 1,200 | L96: 1,800 | M96: 1,800 | N96: 1,800
B97: 환경관리과 | C97: 지보면 마산리 ** | D97: 오** | E97: 야생동물 피해예방시설 설치 지원 | F97: 민간자본사업보조 | G97: 7470천원*1식*60% | H97: 0 | I97: 7,470 | J97: 3,000 | K97: 4,470 | L97: 3,000 | M97: 3,000 | N97: 3,000
B98: 환경관리과 | C98: 용문면 사부리 *** | D98: 이** | E98: 야생동물 피해예방시설 설치 지원 | F98: 민간자본사업보조 | G98: 4950천원*1식*60% | H98: 0 | I98: 4,950 | J98: 2,970 | K98: 1,980 | L98: 2,970 | M98: 2,970 | N98: 2,970
B99: 환경관리과 | C99: 용궁면 외무길 ** | D99: 이** | E99: 야생동물 피해예방시설 설치 지원 | F99: 민간자본사업보조 | G99: 2093천원*1식*60% | H99: 0 | I99: 2,013 | J99: 1,208 | K99: 805 | L99: 1,208 | M99: 1,208 | N99: 1,208
B100: 환경관리과 | C100: 용궁면 무이서당길 *** | D100: 이** | E100: 야생동물 피해예방시설 설치 지원 | F100: 민간자본사업보조 | G100: 3000천원*1식*60% | H100: 0 | I100: 3,000 | J100: 1,800 | K100: 1,200 | L100: 1,800 | M100: 1,800 | N100: 1,800
B101: 환경관리과 | C101: 개포면 송담길***** | D101: 김** | E101: 야생동물 피해예방시설 설치 지원 | F101: 민간자본사업보조 | G101: 4725천원*1식*60% | H101: 0 | I101: 4,725 | J101: 2,835 | K101: 1,890 | L101: 2,835 | M101: 2,835 | N101: 2,835
B102: 환경관리과 | C102: 효자면 보리밭길 **** | D102: 박** | E102: 야생동물 피해예방시설 설치 지원 | F102: 민간자본사업보조 | G102: 1650천원*1식*60% | H102: 0 | I102: 1,650 | J102: 990 | K102: 660 | L102: 990 | M102: 990 | N102: 990
B103: 환경관리과 | C103: 예천읍 동읍내길 ****, ***호 | D103: 박** | E103: 야생동물 피해예방시설 설치 지원 | F103: 민간자본사업보조 | G103: 3300천원*1식*60% | H103: 0 | I103: 3,300 | J103: 1,980 | K103: 1,320 | L103: 1,980 | M103: 1,980 | N103: 1,980
B104: 환경관리과 | C104: 유천면 마천길 ****** | D104: 김** | E104: 야생동물 피해예방시설 설치 지원 | F104: 민간자본사업보조 | G104: 3300천원*1식*60% | H104: 0 | I104: 3,300 | J104: 1,980 | K104: 1,320 | L104: 1,980 | M104: 1,980 | N104: 1,980
B105: 환경관리과 | C105: 용문면 우망골길 *** | D105: 황** | E105: 야생동물 피해예방시설 설치 지원 | F105: 민간자본사업보조 | G105: 5550천원*1식*60% | H105: 0 | I105: 5,550 | J105: 3,000 | K105: 2,550 | L105: 3,000 | M105: 3,000 | N105: 3,000
B106: 환경관리과 | C106: 용문면 직동길 *** | D106: 임** | E106: 야생동물 피해예방시설 설치 지원 | F106: 민간자본사업보조 | G106: 4200천원*1식*60% | H106: 0 | I106: 4,200 | J106: 2,520 | K106: 1,680 | L106: 2,520 | M106: 2,520 | N106: 2,520
B107: 환경관리과 | C107: 감천면 벌방*길 ***** | D107: 최** | E107: 야생동물 피해예방시설 설치 지원 | F107: 민간자본사업보조 | G107: 6825천원*1식*60% | H107: 0 | I107: 6,825 | J107: 3,000 | K107: 3,825 | L107: 3,000 | M107: 3,000 | N107: 3,000
B108: 환경관리과 | C108: 개포면 송담길***** | D108: 김** | E108: 야생동물 피해예방시설 설치 지원 | F108: 민간자본사업보조 | G108: 3750천원*1식*60% | H108: 0 | I108: 3,750 | J108: 2,250 | K108: 1,500 | L108: 2,250 | M108: 2,250 | N108: 2,250
B109: 환경관리과 | C109: 풍양면 덕암로 ******* | D109: 윤** | E109: 야생동물 피해예방시설 설치 지원 | F109: 민간자본사업보조 | G109: 5250천원*1식*60% | H109: 0 | I109: 5,250 | J109: 3,000 | K109: 2,250 | L109: 3,000 | M109: 3,000 | N109: 3,000
B110: 환경관리과 | C110: 용문면 맛질길 **** | D110: 주** | E110: 야생동물 피해예방시설 설치 지원 | F110: 민간자본사업보조 | G110: 4500천원*1식*60% | H110: 0 | I110: 4,500 | J110: 2,700 | K110: 1,800 | L110: 2,700 | M110: 2,700 | N110: 2,700
B111: 환경관리과 | C111: 은풍면 은풍준시길 ** | D111: 변** | E111: 야생동물 피해예방시설 설치 지원 | F111: 민간자본사업보조 | G111: 7125천원*1식*60% | H111: 0 | I111: 7,125 | J111: 3,000 | K111: 4,125 | L111: 3,000 | M111: 3,000 | N111: 3,000
B112: 환경관리과 | C112: 은풍면 은풍준시길 ** | D112: 이** | E112: 야생동물 피해예방시설 설치 지원 | F112: 민간자본사업보조 | G112: 1800천원*1식*60% | H112: 0 | I112: 1,800 | J112: 1,080 | K112: 720 | L112: 1,080 | M112: 1,080 | N112: 1,080
B113: 환경관리과 (예비자) | C113: 예천읍 못골길 *** | D113: 이** | E113: 야생동물 피해예방시설 설치 지원 | F113: 민간자본사업보조 | G113: 15000천원*1식*60% | H113: 0 | M113: 0 | N113: 0
B114: 환경관리과 (예비자) | C114: 예천읍 도효자로 ****** | D114: 김** | E114: 야생동물 피해예방시설 설치 지원 | F114: 민간자본사업보조 | G114: 7500천원*1식*60% | H114: 0 | M114: 0 | N114: 0
B115: 환경관리과 (예비자) | C115: 호명면 상간산길 **** | D115: 정** | E115: 야생동물 피해예방시설 설치 지원 | F115: 민간자본사업보조 | G115: 4500천원*1식*60% | H115: 0 | M115: 0 | N115: 0
B116: 환경관리과 (예비자) | C116: 예천읍 석정길 ** | D116: 윤** | E116: 야생동물 피해예방시설 설치 지원 | F116: 민간자본사업보조 | G116: 4500천원*1식*60% | H116: 0 | M116: 0 | N116: 0
B117: 환경관리과 (예비자) | C117: 예천읍 충효로 ****** | D117: 박** | E117: 야생동물 피해예방시설 설치 지원 | F117: 민간자본사업보조 | G117: 1800천원*1식*60% | H117: 0 | M117: 0 | N117: 0
B118: 환경관리과 (예비자) | C118: 예천읍 도효자로 ****** | D118: 박** | E118: 야생동물 피해예방시설 설치 지원 | F118: 민간자본사업보조 | G118: 3000천원*1식*60% | H118: 0 | M118: 0 | N118: 0
B119: 환경관리과 (예비자) | C119: 예천읍 이미기길 **** | D119: 전** | E119: 야생동물 피해예방시설 설치 지원 | F119: 민간자본사업보조 | G119: 3000천원*1식*60% | H119: 0 | M119: 0 | N119: 0
B120: 환경관리과 (예비자) | C120: 예천읍 충효로 *** | D120: 안** | E120: 야생동물 피해예방시설 설치 지원 | F120: 민간자본사업보조 | G120: 2250천원*1식*60% | H120: 0 | M120: 0 | N120: 0
B121: 환경관리과 (예비자) | C121: 봉화읍 예봉로 ****,*동 ***호 | D121: 임** | E121: 야생동물 피해예방시설 설치 지원 | F121: 민간자본사업보조 | G121: 7500천원*1식*60% | H121: 0 | M121: 0 | N121: 0
B122: 환경관리과 (예비자) | C122: 예천읍 통정길 **** | D122: 김** | E122: 야생동물 피해예방시설 설치 지원 | F122: 민간자본사업보조 | G122: 1500천원*1식*60% | H122: 0 | M122: 0 | N122: 0
B123: 환경관리과 (예비자) | C123: 예천읍 대심*길 **** | D123: 한** | E123: 야생동물 피해예방시설 설치 지원 | F123: 민간자본사업보조 | G123: 4500천원*1식*60% | H123: 0 | M123: 0 | N123: 0
B124: 환경관리과 (예비자) | C124: 예천읍 갈구*길 **** | D124: 최** | E124: 야생동물 피해예방시설 설치 지원 | F124: 민간자본사업보조 | G124: 7500천원*1식*60% | H124: 0 | M124: 0 | N124: 0
B125: 환경관리과 (예비자) | C125: 예천읍 남본리 ****** | D125: 김** | E125: 야생동물 피해예방시설 설치 지원 | F125: 민간자본사업보조 | G125: 2250천원*1식*60% | H125: 0 | M125: 0 | N125: 0
B126: 환경관리과 (예비자) | C126: 예천읍 갈구*길 ***** | D126: 권** | E126: 야생동물 피해예방시설 설치 지원 | F126: 민간자본사업보조 | G126: 4500천원*1식*60% | H126: 0 | M126: 0 | N126: 0
B127: 환경관리과 (예비자) | C127: 예천읍 대심로 *** | D127: 권** | E127: 야생동물 피해예방시설 설치 지원 | F127: 민간자본사업보조 | G127: 5250천원*1식*60% | H127: 0 | M127: 0 | N127: 0
B128: 환경관리과 (예비자) | C128: 예천읍 용산길 ***** | D128: 이** | E128: 야생동물 피해예방시설 설치 지원 | F128: 민간자본사업보조 | G128: 1795천원*1식*60% | H128: 0 | M128: 0 | N128: 0
B129: 환경관리과 (예비자) | C129: 은풍면 은풍로 **** | D129: 박** | E129: 야생동물 피해예방시설 설치 지원 | F129: 민간자본사업보조 | G129: 1500천원*1식*60% | H129: 0 | M129: 0 | N129: 0
B130: 환경관리과 (예비자) | C130: 예천읍 용산길 ****** | D130: 윤** | E130: 야생동물 피해예방시설 설치 지원 | F130: 민간자본사업보조 | G130: 4500천원*1식*60% | H130: 0 | M130: 0 | N130: 0
B131: 환경관리과 (예비자) | C131: 예천읍 남본*길 ***,나동 ***호 | D131: 이** | E131: 야생동물 피해예방시설 설치 지원 | F131: 민간자본사업보조 | G131: 2700천원*1식*60% | H131: 0 | M131: 0 | N131: 0
B132: 환경관리과 (예비자) | C132: 유천면화지*길 ***** | D132: 윤** | E132: 야생동물 피해예방시설 설치 지원 | F132: 민간자본사업보조 | G132: 3000천원*1식*60% | H132: 0 | M132: 0 | N132: 0
B133: 환경관리과 (예비자) | C133: 예천읍 충효로 *** | D133: 이** | E133: 야생동물 피해예방시설 설치 지원 | F133: 민간자본사업보조 | G133: 9750천원*1식*60% | H133: 0 | M133: 0 | N133: 0
B134: 환경관리과 (예비자) | C134: 예천읍 양궁로 ****** | D134: 박 ** | E134: 야생동물 피해예방시설 설치 지원 | F134: 민간자본사업보조 | G134: 520천원*1식*60% | H134: 0 | M134: 0 | N134: 0
B135: 환경관리과 (예비자) | C135: 용문면 맛질길 ** | D135: 권** | E135: 야생동물 피해예방시설 설치 지원 | F135: 민간자본사업보조 | G135: 3000천원*1식*60% | H135: 0 | M135: 0 | N135: 0
B136: 환경관리과 (예비자) | C136: 용문면 반서울로 ***** | D136: 최** | E136: 야생동물 피해예방시설 설치 지원 | F136: 민간자본사업보조 | G136: 6000천원*1식*60% | H136: 0 | M136: 0 | N136: 0
B137: 환경관리과 (예비자) | C137: 용문면 용문경천로 *** | D137: 변** | E137: 야생동물 피해예방시설 설치 지원 | F137: 민간자본사업보조 | G137: 4950천원*1식*60% | H137: 0 | M137: 0 | N137: 0
B138: 환경관리과 (예비자) | C138: 용문면 선동길 *** | D138: 이** | E138: 야생동물 피해예방시설 설치 지원 | F138: 민간자본사업보조 | G138: 3300천원*1식*60% | H138: 0 | M138: 0 | N138: 0
B139: 환경관리과 (예비자) | C139: 용문면 원류길 * | D139: 허** | E139: 야생동물 피해예방시설 설치 지원 | F139: 민간자본사업보조 | G139: 7200천원*1식*60% | H139: 0 | M139: 0 | N139: 0
B140: 환경관리과 (예비자) | C140: 용문면 양갓길 ** | D140: 권** | E140: 야생동물 피해예방시설 설치 지원 | F140: 민간자본사업보조 | G140: 3750천원*1식*60% | H140: 0 | M140: 0 | N140: 0
B141: 환경관리과 (예비자) | C141: 용문면 반서울로 ****** | D141: 이** | E141: 야생동물 피해예방시설 설치 지원 | F141: 민간자본사업보조 | G141: 3600천원*1식*60% | H141: 0 | M141: =J141 -> 0 | N141: 0
B142: 환경관리과 (예비자) | C142: 용문면 용문사길 *** | D142: 정** | E142: 야생동물 피해예방시설 설치 지원 | F142: 민간자본사업보조 | G142: 5700천원*1식*60% | H142: 0 | M142: 0 | N142: 0
B143: 환경관리과 (예비자) | C143: 용문면 용문경천로 *** | D143: 손** | E143: 야생동물 피해예방시설 설치 지원 | F143: 민간자본사업보조 | G143: 7500천원*1식*60% | H143: 0 | M143: 0 | N143: 0
B144: 환경관리과 (예비자) | C144: 용문면 여각길 ** | D144: 권** | E144: 야생동물 피해예방시설 설치 지원 | F144: 민간자본사업보조 | G144: 2550천원*1식*60% | H144: 0 | M144: 0 | N144: 0
B145: 환경관리과 (예비자) | C145: 용문면 두천길 ** | D145: 손** | E145: 야생동물 피해예방시설 설치 지원 | F145: 민간자본사업보조 | G145: 7500천원*1식*60% | H145: 0 | M145: 0 | N145: 0
B146: 환경관리과 (예비자) | C146: 용문면 원류길 ** | D146: 허** | E146: 야생동물 피해예방시설 설치 지원 | F146: 민간자본사업보조 | G146: 4500천원*1식*60% | H146: 0 | M146: 0 | N146: 0
B147: 환경관리과 (예비자) | C147: 용문면 성현길 *** | D147: 이** | E147: 야생동물 피해예방시설 설치 지원 | F147: 민간자본사업보조 | G147: 6000천원*1식*60% | H147: 0 | M147: 0 | N147: 0
B148: 환경관리과 (예비자) | C148: 예천읍 효자로 *** 다동 ***호 | D148: 최** | E148: 야생동물 피해예방시설 설치 지원 | F148: 민간자본사업보조 | G148: 3150천원*1식*60% | H148: 0 | M148: 0 | N148: 0
B149: 환경관리과 (예비자) | C149: 용문면 성현길 *** | D149: 고** | E149: 야생동물 피해예방시설 설치 지원 | F149: 민간자본사업보조 | G149: 2700천원*1식*60% | H149: 0 | M149: 0 | N149: 0
B150: 환경관리과 (예비자) | C150: 용문면 용문사길 *** | D150: 송** | E150: 야생동물 피해예방시설 설치 지원 | F150: 민간자본사업보조 | G150: 4200천원*1식*60% | H150: 0 | M150: 0 | N150: 0
B151: 환경관리과 (예비자) | C151: 안동시 포도길 **** | D151: 권** | E151: 야생동물 피해예방시설 설치 지원 | F151: 민간자본사업보조 | G151: 5250천원*1식*60% | H151: 0 | M151: 0 | N151: 0
B152: 환경관리과 (예비자) | C152: 예천읍 충효로 *** | D152: 장** | E152: 야생동물 피해예방시설 설치 지원 | F152: 민간자본사업보조 | G152: 3300천원*1식*60% | H152: 0 | M152: 0 | N152: 0
B153: 환경관리과 (예비자) | C153: 용문면 금당실길 ***** | D153: 박** | E153: 야생동물 피해예방시설 설치 지원 | F153: 민간자본사업보조 | G153: 4050천원*1식*60% | H153: 0 | M153: 0 | N153: 0
B154: 환경관리과 (예비자) | C154: 용문면 큰맛질길 ***** | D154: 조** | E154: 야생동물 피해예방시설 설치 지원 | F154: 민간자본사업보조 | G154: 3150천원*1식*60% | H154: 0 | M154: 0 | N154: 0
B155: 환경관리과 (예비자) | C155: 용문면 두천길 ** | D155: 박** | E155: 야생동물 피해예방시설 설치 지원 | F155: 민간자본사업보조 | G155: 3450천원*1식*60% | H155: 0 | M155: 0 | N155: 0
B156: 환경관리과 (예비자) | C156: 은풍면 도효자로 **** | D156: 전** | E156: 야생동물 피해예방시설 설치 지원 | F156: 민간자본사업보조 | G156: 9000천원*1식*60% | H156: 0 | M156: 0 | N156: 0
B157: 환경관리과 (예비자) | C157: 예천읍 효자로 ****** 우신강변아파트 ***호 | D157: 강** | E157: 야생동물 피해예방시설 설치 지원 | F157: 민간자본사업보조 | G157: 760천원*1식*60% | H157: 0 | M157: 0 | N157: 0
B158: 환경관리과 (예비자) | C158: 효자면 원용두길 ** | D158: 권** | E158: 야생동물 피해예방시설 설치 지원 | F158: 민간자본사업보조 | G158: 4500천원*1식*60% | H158: 0 | M158: 0 | N158: 0
B159: 환경관리과 (예비자) | C159: 효자면 상보곡길 *** | D159: 도** | E159: 야생동물 피해예방시설 설치 지원 | F159: 민간자본사업보조 | G159: 5250천원*1식*60% | H159: 0 | M159: 0 | N159: 0
B160: 환경관리과 (예비자) | C160: 예천읍 맛고을길 **** | D160: 안** | E160: 야생동물 피해예방시설 설치 지원 | F160: 민간자본사업보조 | G160: 7500천원*1식*60% | H160: 0 | M160: 0 | N160: 0
B161: 환경관리과 (예비자) | C161: 은풍면 내동길 ** | D161: 김** | E161: 야생동물 피해예방시설 설치 지원 | F161: 민간자본사업보조 | G161: 1950천원*1식*60% | H161: 0 | M161: 0 | N161: 0
B162: 환경관리과 (예비자) | C162: 효자면 용소마길 **** | D162: 박** | E162: 야생동물 피해예방시설 설치 지원 | F162: 민간자본사업보조 | G162: 5250천원*1식*60% | H162: 0 | M162: 0 | N162: 0
B163: 환경관리과 (예비자) | C163: 효자면 외초항길 ** | D163: 김** | E163: 야생동물 피해예방시설 설치 지원 | F163: 민간자본사업보조 | G163: 5400천원*1식*60% | H163: 0 | M163: 0 | N163: 0
B164: 환경관리과 (예비자) | C164: 효자면 도촌길 ***** | D164: 박** | E164: 야생동물 피해예방시설 설치 지원 | F164: 민간자본사업보조 | G164: 3300천원*1식*60% | H164: 0 | M164: 0 | N164: 0
B165: 환경관리과 (예비자) | C165: 효자면 도효자로 **** | D165: 박** | E165: 야생동물 피해예방시설 설치 지원 | F165: 민간자본사업보조 | G165: 5550천원*1식*60% | H165: 0 | M165: 0 | N165: 0
B166: 환경관리과 (예비자) | C166: 효자면 도효자로 ******* | D166: 박** | E166: 야생동물 피해예방시설 설치 지원 | F166: 민간자본사업보조 | G166: 2700천원*1식*60% | H166: 0 | M166: 0 | N166: 0
B167: 환경관리과 (예비자) | C167: 효자면 도효자로 ******* | D167: 남** | E167: 야생동물 피해예방시설 설치 지원 | F167: 민간자본사업보조 | G167: 5850천원*1식*60% | H167: 0 | M167: 0 | N167: 0
B168: 환경관리과 (예비자) | C168: 효자면 은풍로 ***** | D168: 최** | E168: 야생동물 피해예방시설 설치 지원 | F168: 민간자본사업보조 | G168: 5250천원*1식*60% | H168: 0 | M168: 0 | N168: 0
B169: 환경관리과 (예비자) | C169: 호명면 양지로 **, ***동 ***호 | D169: 임** | E169: 야생동물 피해예방시설 설치 지원 | F169: 민간자본사업보조 | G169: 1500천원*1식*60% | H169: 0 | M169: 0 | N169: 0
B170: 환경관리과 (예비자) | C170: 효자면 하사곡길 ** | D170: 황** | E170: 야생동물 피해예방시설 설치 지원 | F170: 민간자본사업보조 | G170: 2400천원*1식*60% | H170: 0 | M170: 0 | N170: 0
B171: 환경관리과 (예비자) | C171: 효자면 하사곡길 ** | D171: 유** | E171: 야생동물 피해예방시설 설치 지원 | F171: 민간자본사업보조 | G171: 4350천원*1식*60% | H171: 0 | M171: 0 | N171: 0
B172: 환경관리과 (예비자) | C172: 효자면 왕곡길 *** | D172: 윤** | E172: 야생동물 피해예방시설 설치 지원 | F172: 민간자본사업보조 | G172: 4050천원*1식*60% | H172: 0 | M172: 0 | N172: 0
B173: 환경관리과 (예비자) | C173: 효자면 하보곡길 ** | D173: 태** | E173: 야생동물 피해예방시설 설치 지원 | F173: 민간자본사업보조 | G173: 2400천원*1식*60% | H173: 0 | M173: 0 | N173: 0
B174: 환경관리과 (예비자) | C174: 효자면 원용두길 ** | D174: 최** | E174: 야생동물 피해예방시설 설치 지원 | F174: 민간자본사업보조 | G174: 3000천원*1식*60% | H174: 0 | M174: 0 | N174: 0
B175: 환경관리과 (예비자) | C175: 효자면 춘생길 **** | D175: 이** | E175: 야생동물 피해예방시설 설치 지원 | F175: 민간자본사업보조 | G175: 4200천원*1식*60% | H175: 0 | M175: 0 | N175: 0
B176: 환경관리과 (예비자) | C176: 효자면 은풍로 ****** | D176: 임** | E176: 야생동물 피해예방시설 설치 지원 | F176: 민간자본사업보조 | G176: 2850천원*1식*60% | H176: 0 | M176: 0 | N176: 0
B177: 환경관리과 (예비자) | C177: 효자면 하보곡길 ** | D177: 정** | E177: 야생동물 피해예방시설 설치 지원 | F177: 민간자본사업보조 | G177: 6300천원*1식*60% | H177: 0 | M177: 0 | N177: 0
B178: 환경관리과 (예비자) | C178: 효자면 은풍로 *** | D178: 손** | E178: 야생동물 피해예방시설 설치 지원 | F178: 민간자본사업보조 | G178: 12450천원*1식*60% | H178: 0 | M178: 0 | N178: 0
B179: 환경관리과 (예비자) | C179: 효자면 은풍로 **** | D179: 최** | E179: 야생동물 피해예방시설 설치 지원 | F179: 민간자본사업보조 | G179: 5400천원*1식*60% | H179: 0 | M179: 0 | N179: 0
B180: 환경관리과 (예비자) | C180: 효자면 백석길 *** | D180: 전** | E180: 야생동물 피해예방시설 설치 지원 | F180: 민간자본사업보조 | G180: 4800천원*1식*60% | H180: 0 | M180: 0 | N180: 0
B181: 환경관리과 (예비자) | C181: 은풍면 도효자로 ******* | D181: 유** | E181: 야생동물 피해예방시설 설치 지원 | F181: 민간자본사업보조 | G181: 3600천원*1식*60% | H181: 0 | M181: 0 | N181: 0
B182: 환경관리과 (예비자) | C182: 은풍면 조고리길 *** | D182: 이** | E182: 야생동물 피해예방시설 설치 지원 | F182: 민간자본사업보조 | G182: 5325천원*1식*60% | H182: 0 | M182: 0 | N182: 0
B183: 환경관리과 (예비자) | C183: 은풍면 어림성길 ****** | D183: 민** | E183: 야생동물 피해예방시설 설치 지원 | F183: 민간자본사업보조 | G183: 5325천원*1식*60% | H183: 0 | M183: 0 | N183: 0
B184: 환경관리과 (예비자) | C184: 은풍면 은풍준시길 ** | D184: 김** | E184: 야생동물 피해예방시설 설치 지원 | F184: 민간자본사업보조 | G184: 9375천원*1식*60% | H184: 0 | M184: 0 | N184: 0
B185: 환경관리과 (예비자) | C185: 은풍면 율곡*길 ***** | D185: 권** | E185: 야생동물 피해예방시설 설치 지원 | F185: 민간자본사업보조 | G185: 4050천원*1식*60% | H185: 0 | M185: 0 | N185: 0
B186: 환경관리과 (예비자) | C186: 은풍면 조고리길 *** | D186: 이** | E186: 야생동물 피해예방시설 설치 지원 | F186: 민간자본사업보조 | G186: 7125천원*1식*60% | H186: 0 | M186: 0 | N186: 0
B187: 환경관리과 (예비자) | C187: 한감길 **은풍면 | D187: 안** | E187: 야생동물 피해예방시설 설치 지원 | F187: 민간자본사업보조 | G187: 6075천원*1식*60% | H187: 0 | M187: 0 | N187: 0
B188: 환경관리과 (예비자) | C188: 은풍면 은풍로 *** | D188: 이** | E188: 야생동물 피해예방시설 설치 지원 | F188: 민간자본사업보조 | G188: 5325천원*1식*60% | H188: 0 | M188: 0 | N188: 0
B189: 환경관리과 (예비자) | C189: 은풍면 은산길 ***** | D189: 김** | E189: 야생동물 피해예방시설 설치 지원 | F189: 민간자본사업보조 | G189: 4500천원*1식*60% | H189: 0 | M189: 0 | N189: 0
B190: 환경관리과 (예비자) | C190: 은풍면 충효로 *****, ******* | D190: 김** | E190: 야생동물 피해예방시설 설치 지원 | F190: 민간자본사업보조 | G190: 6225천원*1식*60% | H190: 0 | M190: 0 | N190: 0
B191: 환경관리과 (예비자) | C191: 은풍면 은풍로 ***** | D191: 권** | E191: 야생동물 피해예방시설 설치 지원 | F191: 민간자본사업보조 | G191: 5550천원*1식*60% | H191: 0 | M191: 0 | N191: 0
B192: 환경관리과 (예비자) | C192: 은풍면 율곡*길 *** | D192: 이** | E192: 야생동물 피해예방시설 설치 지원 | F192: 민간자본사업보조 | G192: 4500천원*1식*60% | H192: 0 | M192: 0 | N192: 0
B193: 환경관리과 (예비자) | C193: 은풍면 부용봉길 ***** | D193: 남** | E193: 야생동물 피해예방시설 설치 지원 | F193: 민간자본사업보조 | G193: 2025천원*1식*60% | H193: 0 | M193: 0 | N193: 0
B194: 환경관리과 (예비자) | C194: 은풍면 부용봉길 ***** | D194: 이** | E194: 야생동물 피해예방시설 설치 지원 | F194: 민간자본사업보조 | G194: 6075천원*1식*60% | H194: 0 | M194: 0 | N194: 0
B195: 환경관리과 (예비자) | C195: 은풍면 송월길 **** | D195: 김** | E195: 야생동물 피해예방시설 설치 지원 | F195: 민간자본사업보조 | G195: 3150천원*1식*60% | H195: 0 | M195: 0 | N195: 0
B196: 환경관리과 (예비자) | C196: 은풍면 송월길 *** | D196: 노** | E196: 야생동물 피해예방시설 설치 지원 | F196: 민간자본사업보조 | G196: 2025천원*1식*60% | H196: 0 | M196: 0 | N196: 0
B197: 환경관리과 (예비자) | C197: 은풍면 은풍로 **** | D197: 최** | E197: 야생동물 피해예방시설 설치 지원 | F197: 민간자본사업보조 | G197: 1125천원*1식*60% | H197: 0 | M197: 0 | N197: 0
B198: 환경관리과 (예비자) | C198: 은풍면 어림성길 *** | D198: 정** | E198: 야생동물 피해예방시설 설치 지원 | F198: 민간자본사업보조 | G198: 3075천원*1식*60% | H198: 0 | M198: 0 | N198: 0
B199: 환경관리과 (예비자) | C199: 은풍면 은풍로 **** | D199: 조** | E199: 야생동물 피해예방시설 설치 지원 | F199: 민간자본사업보조 | G199: 2114천원*1식*60% | H199: 0 | M199: 0 | N199: 0
B200: 환경관리과 (예비자) | C200: 은풍면 송월길 ** | D200: 김** | E200: 야생동물 피해예방시설 설치 지원 | F200: 민간자본사업보조 | G200: 5100천원*1식*60% | H200: 0 | M200: 0 | N200: 0
... 135 more rows
